bitfinex/quotes_BTCUSD_20250420
["timestamp","ask_amount","ask_price","bid_price","bid_amount"]
[1745159323236,0.00100001,84305.0,84297.0,0.00249805]
[1745159324745,0.00100001,84305.0,84298.0,0.13284]
[1745159324961,0.00100001,84305.0,84299.0,0.34]
[1745159325399,0.00100001,84305.0,84299.0,0.34249805]
[1745159326226,0.00100001,84305.0,84299.0,0.35139154]
[1745159329696,0.00100001,84305.0,84300.0,1.21848]
[1745159330312,0.00100001,84305.0,84301.0,0.00249805]
[1745159336475,4.5e-05,84307.0,84301.0,0.00249805]
[1745159338264,4.5e-05,84307.0,84299.0,0.00889349]
[1745159338522,4.5e-05,84307.0,84302.0,0.00243088]
[1745159338811,4.5e-05,84307.0,84303.0,0.00243088]
[1745159339102,4.5e-05,84307.0,84298.0,0.17864]
[1745159339249,4.5e-05,84307.0,84304.0,0.00243088]
[1745159339443,4.5e-05,84307.0,84298.0,0.17864]
[1745159339693,4.5e-05,84307.0,84305.0,0.00243088]
[1745159339871,4.5e-05,84307.0,84298.0,0.17864]
[1745159340080,4.5e-05,84307.0,84306.0,0.00243088]
[1745159340334,4.5e-05,84307.0,84298.0,0.0458]
[1745159340484,4.5e-05,84307.0,84306.0,0.00243088]
[1745159340720,4.5e-05,84307.0,84298.0,0.0458]
[1745159340892,4.5e-05,84307.0,84306.0,0.00243088]
[1745159341095,4.5e-05,84307.0,84298.0,0.0458]
[1745159341663,4.5e-05,84307.0,84299.0,0.00243088]
[1745159342100,0.0458,84318.0,84299.0,0.00243088]
[1745159342410,0.0458,84318.0,84308.0,0.39811554]
[1745159342411,0.04584503,84318.0,84308.0,0.39811554]
[1745159342969,0.04684504,84318.0,84309.0,0.00240206]
[1745159344783,0.36976921,84325.0,84309.0,0.00240206]
[1745159344784,0.41576921,84325.0,84309.0,0.00240206]
[1745159344986,0.36976921,84325.0,84309.0,0.00253689]
[1745159345378,0.0491,84327.0,84311.0,0.1]
[1745159345578,0.0491,84335.0,84314.0,0.1]
[1745159345785,0.0491,84335.0,84317.0,0.34]
[1745159346196,0.0004209,84338.0,84326.0,0.34]
[1745159346410,0.00142091,84338.0,84328.0,0.34]
[1745159346819,0.00142091,84338.0,84329.0,0.00234716]
[1745159347032,0.00142091,84338.0,84330.0,0.44]
[1745159347235,0.0004209,84338.0,84330.0,0.44]
[1745159347439,0.0004209,84338.0,84331.0,0.34234716]
[1745159348730,0.0004209,84338.0,84331.0,0.00234716]
[1745159348958,0.0004209,84338.0,84331.0,0.01634474]
[1745159349108,0.0004209,84338.0,84333.0,0.34]
[1745159349312,0.0004209,84338.0,84335.0,0.1]
[1745159350163,0.0004209,84338.0,84335.0,0.15328301]
[1745159350381,0.0004209,84338.0,84335.0,0.10888301]
[1745159350601,0.00047433,84338.0,84335.0,0.10888301]
[1745159352134,0.00047433,84338.0,84335.0,0.15708301]
[1745159352341,0.004,84349.0,84339.0,0.39811554]
[1745159352542,0.00405341,84349.0,84347.0,0.1]
[1745159355350,0.00405341,84349.0,84348.0,1.69076]
[1745159355731,0.00405341,84349.0,84348.0,1.79076]
[1745159358649,0.00405341,84349.0,84348.0,0.57276]
[1745159360110,0.04439511,84356.0,84350.0,0.1]
[1745159360315,0.0004503,84354.0,84350.0,0.1]
[1745159360757,0.00145031,84354.0,84350.0,0.1]
[1745159363270,0.0909,84353.0,84350.0,0.1]
[1745159363762,0.09190001,84353.0,84350.0,0.1]
[1745159365286,0.09190001,84353.0,84351.0,1.35056]
[1745159368791,0.00100001,84353.0,84351.0,1.35056]
[1745159369198,0.00100001,84353.0,84351.0,0.13272]
[1745159369400,0.0004503,84354.0,84351.0,0.23272]
[1745159371321,0.0004503,84354.0,84351.0,0.1]
[1745159371942,0.0473503,84354.0,84351.0,0.1]
[1745159375230,0.0473503,84354.0,84352.0,1.3504]
[1745159378217,0.0473503,84354.0,84340.0,0.19905777]
[1745159378418,0.0473503,84354.0,84351.0,0.1]
[1745159385338,0.0473503,84354.0,84352.0,1.35036]
[1745159385620,0.0473503,84354.0,84353.0,0.13268]
[1745159390134,0.0473503,84354.0,84340.0,0.19905777]
[1745159390335,0.0473503,84354.0,84351.0,0.1]
[1745159395335,0.0473503,84354.0,84352.0,1.35032]
[1745159397461,0.0473503,84354.0,84344.0,0.19905777]
[1745159397672,0.0473503,84354.0,84351.0,0.1]
[1745159399725,0.0004503,84354.0,84351.0,0.1]
[1745159399944,0.048,84359.0,84351.0,0.1]
[1745159402696,0.0458,84361.0,84356.0,0.1]
[1745159403128,0.01025622,84372.0,84357.0,0.048]
[1745159403337,0.0004206,84387.0,84364.0,0.1]
[1745159403549,0.0004206,84387.0,84373.0,0.1]
[1745159403776,0.0004206,84387.0,84372.0,0.19905777]
[1745159403777,0.0004206,84387.0,84376.0,0.1]
[1745159404401,0.0004206,84387.0,84378.0,0.1]
[1745159405018,0.00055573,84383.0,84378.0,0.1]
[1745159405376,0.00055573,84383.0,84380.0,0.34]
[1745159405739,0.00055573,84383.0,84380.0,0.30294318]
[1745159406485,0.00055573,84383.0,84381.0,0.13264]
[1745159406916,0.00055573,84383.0,84380.0,0.30294318]
[1745159407509,0.00055573,84383.0,84373.0,0.34]
[1745159407710,0.00055573,84383.0,84378.0,0.1]
[1745159410562,0.0965,84381.0,84378.0,0.1]
[1745159410775,0.048,84379.0,84350.0,0.19905777]
[1745159410986,0.00120347,84381.0,84375.0,0.1]
[1745159411194,0.0004206,84387.0,84375.0,0.1]
[1745159411404,0.36976921,84405.0,84383.0,0.1]
[1745159411624,0.36976921,84405.0,84384.0,0.34]
[1745159411830,0.36976921,84405.0,84387.0,0.1]
[1745159413746,0.36976921,84405.0,84391.0,0.1]
[1745159414175,0.0491,84403.0,84391.0,0.1]
[1745159414393,0.36976921,84405.0,84391.0,0.1]
[1745159415249,0.36976921,84405.0,84392.0,1.34988]
[1745159415577,0.095,84408.0,84392.0,1.44988]
[1745159416000,0.095,84408.0,84396.0,0.19905777]
[1745159416196,0.0491,84408.0,84396.0,0.29905777]
[1745159416406,0.0491,84414.0,84397.0,0.0455]
[1745159416618,0.0491,84420.0,84397.0,0.1455]
[1745159416816,0.0491,84420.0,84406.0,0.1]
[1745159417019,0.0491,84420.0,84409.0,0.1]
[1745159417230,0.00055551,84417.0,84409.0,0.1]
[1745159417809,0.00055551,84417.0,84411.0,0.1]
[1745159418014,0.00055551,84417.0,84407.0,0.19905777]
[1745159418015,0.00055551,84417.0,84413.0,0.1]
[1745159419293,0.00055551,84417.0,84416.0,0.1]
[1745159423286,0.0937,84435.0,84416.0,0.1]
[1745159424681,0.0463,84441.0,84417.0,0.0487]
[1745159424889,0.0463,84441.0,84417.0,0.1487]
[1745159425121,0.0463,84441.0,84417.0,0.1497]
[1745159425289,0.0463,84441.0,84418.0,1.34956]
[1745159425638,0.0463,84441.0,84418.0,1.45824305]
[1745159425792,0.0463,84441.0,84418.0,1.45924305]
[1745159426366,0.0463,84441.0,84419.0,0.44]
[1745159426568,0.0463,84441.0,84421.0,0.34]
[1745159426770,0.0914,84446.0,84423.0,0.34]
[1745159426974,0.0914,84446.0,84423.0,0.55944791]
[1745159427725,0.89477529,84444.0,84435.0,0.34]
[1745159427925,0.89522514,84444.0,84437.0,0.34]
[1745159428675,0.89522514,84444.0,84437.0,0.44]
[1745159435295,0.89522514,84444.0,84438.0,1.34912]
[1745159435514,0.88722514,84444.0,84438.0,1.44912]
[1745159436374,0.88222514,84444.0,84438.0,1.44912]
[1745159436819,0.88222514,84444.0,84439.0,0.34]
[1745159437042,0.88222514,84444.0,84439.0,0.44]
[1745159443070,0.87422514,84444.0,84439.0,0.44]
[1745159443960,0.81515344,84444.0,84439.0,0.44]
[1745159445487,0.81515344,84444.0,84440.0,1.349]
[1745159445644,0.81515344,84444.0,84440.0,1.449]
[1745159446198,0.79201344,84444.0,84440.0,1.449]
[1745159446378,0.78431344,84444.0,84440.0,1.449]
[1745159446761,0.78431344,84444.0,84440.0,0.24155957]
[1745159447713,0.78431344,84444.0,84441.0,0.34]
[1745159447890,0.78431344,84444.0,84441.0,0.44]
[1745159449360,0.72525344,84444.0,84441.0,0.44]
[1745159450461,0.66619344,84444.0,84441.0,0.44]
[1745159450885,0.65819344,84444.0,84441.0,0.44]
[1745159451329,0.59912863,84444.0,84441.0,0.44]
[1745159452176,0.58826863,84444.0,84441.0,0.44]
[1745159452376,0.56801864,84444.0,84441.0,0.44]
[1745159452762,0.54745865,84444.0,84441.0,0.44]
[1745159452966,0.53363866,84444.0,84441.0,0.44]
[1745159453318,0.47457385,84444.0,84441.0,0.44]
[1745159455392,0.47457385,84444.0,84442.0,1.34896]
[1745159455612,0.47457385,84444.0,84442.0,1.44896]
[1745159458613,0.46657385,84444.0,84442.0,1.44896]
[1745159459030,0.21194791,84443.0,84442.0,0.1]
[1745159459264,0.0455,84442.0,84412.0,0.0495]
[1745159459468,0.53917777,84443.0,84438.0,0.1]
[1745159459469,0.0455,84440.0,84438.0,0.1]
[1745159459641,0.48921712,84439.0,84438.0,0.1]
[1745159459841,0.48921712,84439.0,84438.0,0.2328]
[1745159460080,0.49021712,84439.0,84438.0,0.2328]
[1745159460713,0.49021712,84439.0,84438.0,0.1]
[1745159460918,0.49021712,84439.0,84438.0,0.2328]
[1745159460919,0.53571712,84439.0,84438.0,0.2328]
[1745159461113,0.53571712,84439.0,84438.0,0.1]
[1745159461343,0.53571712,84439.0,84438.0,0.2328]
[1745159461544,0.53571712,84439.0,84438.0,0.1328]
[1745159461973,0.53571712,84439.0,84438.0,0.4728]
[1745159462285,0.53571712,84439.0,84438.0,0.47284]
[1745159464437,0.0467,84437.0,84425.0,0.00900155]
[1745159464710,0.0467,84435.0,84426.0,0.13284]
[1745159464914,0.0467,84433.0,84426.0,0.13284]
[1745159465087,0.0467,84431.0,84426.0,0.13284]
[1745159465444,0.0467,84429.0,84427.0,1.21648]
[1745159465578,0.21790916,84428.0,84427.0,1.55648]
[1745159465975,0.21890916,84428.0,84427.0,1.55648]
[1745159466197,0.21890916,84428.0,84427.0,1.68932]
[1745159466746,0.58867837,84428.0,84427.0,1.21648]
[1745159466882,0.58571712,84428.0,84427.0,1.34932]
[1745159470062,0.58571712,84428.0,84427.0,1.21648]
[1745159470258,0.58571712,84428.0,84427.0,1.34932]
[1745159481038,0.58471712,84428.0,84427.0,1.34932]
[1745159481230,0.48921712,84428.0,84427.0,1.34932]
[1745159491417,0.48921712,84428.0,84427.0,1.44932]
[1745159496247,0.48121712,84428.0,84427.0,1.44932]
[1745159504049,0.36976921,84428.0,84427.0,1.44932]
[1745159506378,0.36976921,84438.0,84427.0,1.44932]
[1745159506518,0.12240893,84437.0,84429.0,0.1]
[1745159508977,0.12240893,84437.0,84431.0,0.34]
[1745159512214,0.36976921,84436.0,84431.0,0.34]
[1745159512430,0.11944791,84435.0,84431.0,0.34]
[1745159512667,0.11944791,84435.0,84427.0,1.21648]
[1745159512852,0.11944791,84435.0,84432.0,0.1328]
[1745159513066,0.002961,84434.0,84432.0,0.1328]
[1745159513242,0.11944791,84433.0,84432.0,0.1328]
[1745159514413,0.21734791,84433.0,84432.0,0.1328]
[1745159514607,0.21734791,84433.0,84427.0,1.21648]
[1745159514819,0.21734791,84433.0,84432.0,0.1328]
[1745159516259,0.21734791,84433.0,84432.0,0.13256]
[1745159518246,0.58711712,84433.0,84432.0,0.47256]
[1745159523073,0.58711712,84433.0,84432.0,0.34]
[1745159523276,0.58711712,84433.0,84432.0,0.47256]
[1745159524601,0.58711712,84433.0,84432.0,0.13256]
[1745159525589,0.0936,84431.0,84427.0,1.21648]
[1745159525821,0.22758876,84428.0,84427.0,1.21648]
[1745159526051,0.2315504,84428.0,84427.0,1.34904]
[1745159532901,0.2315504,84428.0,84403.0,0.0008402]
[1745159532902,0.01454085,84415.0,84403.0,0.0008402]
[1745159533121,0.37273155,84414.0,84407.0,1.34952]
[1745159533369,0.11944791,84408.0,84407.0,1.34952]
[1745159533592,0.12241,84408.0,84407.0,1.34952]
[1745159533784,0.12241,84408.0,84380.0,0.09939323]
[1745159534023,0.11944791,84406.0,84389.0,0.09407614]
[1745159534248,0.00296235,84405.0,84393.0,0.1]
[1745159534456,0.11944791,84404.0,84393.0,0.1]
[1745159534681,0.00296234,84403.0,84393.0,0.1]
[1745159534901,0.16474791,84402.0,84393.0,0.1]
[1745159535106,0.00282439,84401.0,84389.0,0.0141762]
[1745159535237,0.00282439,84401.0,84392.0,0.1]
[1745159535238,0.11944791,84400.0,84392.0,0.1]
[1745159535436,0.00282451,84399.0,84392.0,0.1]
[1745159535636,0.11944791,84398.0,84392.0,0.1]
[1745159535838,0.00282451,84397.0,84392.0,0.1]
[1745159536042,0.11944791,84396.0,84392.0,0.1]
[1745159536258,0.00282451,84395.0,84392.0,0.1]
[1745159536460,0.11944791,84394.0,84392.0,0.1]
[1745159536748,0.11944791,84394.0,84392.0,0.101]
[1745159536918,0.36976921,84407.0,84393.0,0.1984]
[1745159537150,0.11944791,84406.0,84401.0,0.1]
[1745159537352,0.11944791,84406.0,84397.0,0.19839615]
[1745159537554,0.11944791,84406.0,84397.0,0.19939615]
[1745159537757,0.11944791,84406.0,84399.0,0.1]
[1745159538283,0.11944791,84406.0,84399.0,0.101]
[1745159540372,0.00296189,84405.0,84399.0,0.1]
[1745159540546,0.11944791,84404.0,84400.0,0.1326]
[1745159541584,0.36976921,84403.0,84400.0,0.1326]
[1745159541806,0.11944791,84402.0,84400.0,0.1326]
[1745159545774,0.11944791,84402.0,84401.0,0.34]
[1745159547531,0.48921712,84402.0,84401.0,0.34]
[1745159548475,0.48921712,84402.0,84400.0,0.1326]
[1745159548597,0.00296222,84401.0,84400.0,0.1326]
[1745159548797,0.12241013,84401.0,84400.0,0.1326]
[1745159549560,0.0459,84400.0,84390.0,1.21704]
[1745159549785,0.0459,84392.0,84391.0,0.1326]
[1745159549980,0.16534791,84392.0,84391.0,0.1326]
[1745159551608,0.21194791,84392.0,84391.0,0.1326]
[1745159553301,0.58171712,84392.0,84391.0,0.1326]
[1745159561079,0.58071712,84392.0,84391.0,0.1326]
[1745159562360,0.48921712,84392.0,84391.0,0.1326]
[1745159563270,0.48921712,84392.0,84391.0,0.1336]
[1745159563864,0.48921712,84392.0,84391.0,0.1436]
[1745159565774,0.48921712,84392.0,84391.0,0.4836]
[1745159577016,0.48921712,84392.0,84391.0,0.4826]
[1745159578679,0.53501712,84392.0,84391.0,0.4826]
[1745159579136,0.53501712,84392.0,84391.0,0.1426]
[1745159584027,0.53601712,84392.0,84391.0,0.1426]
[1745159584229,0.53601712,84392.0,84391.0,0.01]
[1745159584430,0.53601712,84392.0,84391.0,0.1426]
[1745159587717,0.55055797,84392.0,84391.0,0.1426]
[1745159589102,0.53601712,84392.0,84391.0,0.1426]
[1745159589308,0.48921712,84392.0,84391.0,0.1426]
[1745159589455,0.48921712,84392.0,84391.0,0.1436]
[1745159590310,0.48921712,84392.0,84391.0,0.4836]
[1745159595768,0.36976921,84408.0,84391.0,0.19]
[1745159596003,0.12240993,84407.0,84392.0,0.1]
[1745159596254,0.12240993,84407.0,84397.0,0.30245165]
[1745159596483,0.36976921,84408.0,84397.0,0.30245165]
[1745159596708,0.36976921,84408.0,84400.0,0.1]
[1745159597175,0.36976921,84408.0,84400.0,0.101]
[1745159597398,0.36976921,84408.0,84401.0,0.34]
[1745159597893,0.36976921,84408.0,84401.0,0.341]
[1745159598778,0.36976921,84408.0,84401.0,0.001]
[1745159600351,0.36976921,84422.0,84401.0,0.001]
[1745159600581,0.36976921,84422.0,84399.0,0.34]
[1745159600582,0.12240957,84421.0,84399.0,0.34]
[1745159600809,0.12240957,84421.0,84400.0,0.1]
[1745159601483,0.11944791,84410.0,84401.0,0.13256]
[1745159601760,0.11944791,84408.0,84401.0,0.13256]
[1745159601995,0.00296216,84407.0,84402.0,0.13256]
[1745159602227,0.11944791,84406.0,84402.0,0.13256]
[1745159602416,0.00296203,84405.0,84402.0,0.13256]
[1745159602647,0.11944791,84404.0,84402.0,0.13256]
[1745159604936,0.11944791,84404.0,84403.0,0.34]
[1745159607723,0.11944791,84404.0,84403.0,1.5572]
[1745159611300,0.11944791,84404.0,84403.0,1.4069954]
[1745159611478,0.11944791,84404.0,84403.0,1.2172]
[1745159613601,0.11944791,84404.0,84403.0,1.34976]
[1745159616460,0.11944791,84404.0,84403.0,1.2172]
[1745159616665,0.11944791,84404.0,84403.0,1.34976]
[1745159637295,0.11944791,84404.0,84403.0,1.68976]
[1745159643964,0.11944791,84404.0,84403.0,1.5572]
[1745159644105,0.11944791,84404.0,84403.0,1.68976]
[1745159652739,0.11944791,84404.0,84403.0,1.69076]
[1745159653177,0.36976921,84410.0,84403.0,1.45076]
[1745159653369,0.11944791,84409.0,84403.0,1.34976]
[1745159653576,0.11944791,84409.0,84404.0,0.44]
[1745159653975,0.36976921,84410.0,84405.0,0.44]
[1745159654183,0.36976921,84410.0,84406.0,0.0452]
[1745159654411,0.36296921,84410.0,84406.0,0.1452]
[1745159654612,0.36296921,84410.0,84406.0,0.1462]
[1745159655114,0.36296921,84410.0,84405.0,0.23716673]
[1745159655452,0.36296921,84410.0,84405.0,0.00013501]
[1745159659055,0.0469,84416.0,84405.0,0.00013501]
[1745159659207,0.12240952,84415.0,84405.0,0.00013501]
[1745159659611,0.12340952,84415.0,84405.0,0.00013501]
[1745159661810,0.12044791,84415.0,84405.0,0.00013501]
[1745159663612,0.11350948,84415.0,84405.0,0.00013501]
[1745159665000,0.00296161,84414.0,84405.0,0.00013501]
[1745159665343,0.047,84412.0,84405.0,0.00013501]
[1745159665522,0.047,84410.0,84406.0,0.13252]
[1745159665744,0.12240983,84409.0,84406.0,0.13252]
[1745159666143,0.12340983,84409.0,84406.0,0.13252]
[1745159670442,0.12044791,84409.0,84406.0,0.13252]
[1745159670640,0.001,84409.0,84406.0,0.13252]
[1745159670974,0.00296164,84415.0,84406.0,0.13252]
[1745159671174,0.11944791,84414.0,84406.0,0.13252]
[1745159671584,0.12044791,84414.0,84406.0,0.13252]
[1745159675223,0.00296164,84413.0,84406.0,0.13252]
[1745159675430,0.11944791,84412.0,84405.0,0.00013501]
[1745159675661,0.05186199,84411.0,84407.0,0.13252]
[1745159675809,0.11944791,84410.0,84407.0,0.13252]
[1745159675993,0.00296192,84409.0,84407.0,0.13252]
[1745159676197,0.11944791,84408.0,84407.0,0.13252]
[1745159676572,0.48341712,84408.0,84407.0,0.13252]
[1745159682192,0.36296921,84408.0,84407.0,0.13252]
[1745159682401,0.36296921,84417.0,84407.0,0.13252]
[1745159682639,0.12240954,84416.0,84407.0,0.33102481]
[1745159683020,0.12340954,84416.0,84407.0,0.33102481]
[1745159683809,0.12340954,84416.0,84408.0,0.13252]
[1745159686054,0.12340954,84416.0,84409.0,0.34]
[1745159687457,0.12340954,84416.0,84411.0,0.34]
[1745159687862,0.03180318,84415.0,84411.0,0.34]
[1745159688081,0.12240964,84414.0,84411.0,0.34]
[1745159688282,0.36296921,84413.0,84411.0,0.34]
[1745159688549,0.11944791,84412.0,84411.0,0.34]
[1745159689048,0.12044791,84412.0,84411.0,0.34]
[1745159693597,0.12044791,84412.0,84411.0,0.17962971]
[1745159694275,0.48341712,84412.0,84410.0,0.13252]
[1745159695842,0.48341712,84412.0,84411.0,1.21696]
[1745159697185,0.48341712,84412.0,84411.0,1.55696]
[1745159700788,0.53101712,84412.0,84411.0,1.55696]
[1745159701055,0.53101712,84412.0,84411.0,1.68948]
[1745159707296,0.53101712,84412.0,84411.0,1.34948]
[1745159707297,0.57781712,84412.0,84411.0,1.34948]
[1745159709435,0.57881712,84412.0,84411.0,1.34948]
[1745159710994,0.57781712,84412.0,84411.0,1.34948]
[1745159711829,0.57881712,84412.0,84411.0,1.34948]
[1745159712058,0.57781712,84412.0,84411.0,1.34948]
[1745159712732,0.57881712,84412.0,84411.0,1.34948]
[1745159713233,0.57881712,84412.0,84411.0,1.21696]
[1745159713489,0.57881712,84412.0,84405.0,0.00013501]
[1745159713490,0.01454085,84409.0,84405.0,0.00013501]
[1745159713720,0.10764085,84407.0,84406.0,1.34952]
[1745159713958,0.22908876,84407.0,84406.0,1.34952]
[1745159714664,0.232051,84407.0,84406.0,1.34952]
[1745159715133,0.59502021,84407.0,84406.0,1.34952]
[1745159715396,0.59205797,84407.0,84406.0,1.34952]
[1745159716396,0.0931,84404.0,84391.0,0.00913501]
[1745159716603,0.11944791,84392.0,84391.0,0.00913501]
[1745159716759,0.16674791,84392.0,84391.0,0.00913501]
[1745159716942,0.21354791,84392.0,84391.0,0.00913501]
[1745159720643,0.57651712,84392.0,84391.0,0.00913501]
[1745159724018,0.57551712,84392.0,84391.0,0.00913501]
[1745159725273,0.57551712,84392.0,84391.0,1.22645501]
[1745159725518,0.57551712,84392.0,84391.0,1.35901501]
[1745159727692,0.57551712,84392.0,84391.0,1.22645501]
[1745159727889,0.57551712,84392.0,84391.0,1.35901501]
[1745159738101,0.59105797,84392.0,84391.0,1.35901501]
[1745159738304,0.59105797,84392.0,84391.0,1.22645501]
[1745159738485,0.01454085,84386.0,84372.0,0.0008416]
[1745159738688,0.0491,84381.0,84378.0,1.35]
[1745159739008,0.11944791,84379.0,84378.0,1.35]
[1745159739956,0.11954909,84379.0,84378.0,1.35]
[1745159741649,0.11954909,84379.0,84378.0,1.351]
[1745159744064,0.47338329,84379.0,84378.0,1.21844]
[1745159744222,0.47338329,84379.0,84378.0,1.351]
[1745159749149,0.00010118,84379.0,84378.0,1.3822]
[1745159749759,0.3538342,84392.0,84378.0,1.3822]
[1745159750093,0.11944791,84391.0,84380.0,0.30269187]
[1745159750488,0.35387918,84392.0,84380.0,0.30369187]
[1745159750666,0.35387918,84392.0,84381.0,0.0451]
[1745159751032,0.35387918,84392.0,84381.0,0.0461]
[1745159751483,0.3538342,84406.0,84385.0,0.0763]
[1745159751631,0.3538342,84406.0,84397.0,0.34]
[1745159752064,0.3538342,84406.0,84397.0,0.341]
[1745159752269,0.3538342,84406.0,84398.0,0.0451]
[1745159752755,0.3538342,84406.0,84398.0,0.0461]
[1745159754456,0.11944791,84405.0,84398.0,0.0461]
[1745159754955,0.11944791,84405.0,84398.0,0.001]
[1745159755254,0.11944791,84405.0,84399.0,1.34984]
[1745159755777,0.11944791,84405.0,84399.0,1.35084]
[1745159756729,0.3538342,84406.0,84399.0,1.35084]
[1745159758015,0.3538342,84406.0,84399.0,1.21832]
[1745159758220,0.3538342,84406.0,84400.0,0.13252]
[1745159758418,4.499e-05,84420.0,84401.0,0.0769]
[1745159758621,4.499e-05,84420.0,84410.0,0.30269187]
[1745159758622,0.11944791,84419.0,84410.0,0.30269187]
[1745159759240,0.11944791,84419.0,84411.0,0.13252]
[1745159759793,0.11944791,84419.0,84411.0,0.13352]
[1745159760146,0.11944791,84419.0,84412.0,0.0312]
[1745159760526,0.11944791,84419.0,84412.0,0.0322]
[1745159761498,0.11944791,84419.0,84411.0,0.13252]
[1745159761770,0.11944791,84419.0,84410.0,0.30269187]
[1745159761970,0.11944791,84419.0,84411.0,0.34]
[1745159764009,0.11944791,84419.0,84410.0,0.34]
[1745159766198,0.11944791,84419.0,84411.0,1.34944]
[1745159766463,0.00296139,84418.0,84411.0,1.21696]
[1745159766630,0.11944791,84417.0,84412.0,0.13248]
[1745159766873,0.00296167,84416.0,84412.0,0.13248]
[1745159767076,0.11944791,84415.0,84412.0,0.13248]
[1745159767249,0.00296167,84414.0,84412.0,0.13248]
[1745159767452,0.11944791,84413.0,84412.0,0.13248]
[1745159769872,0.11944791,84413.0,84412.0,0.47248]
[1745159772859,0.16904791,84413.0,84412.0,0.47248]
[1745159774698,0.46922211,84413.0,84412.0,0.34]
[1745159774902,0.47022211,84413.0,84412.0,0.47248]
[1745159775104,0.51622211,84413.0,84412.0,0.13248]
[1745159776399,0.51622211,84413.0,84411.0,1.21696]
[1745159776646,0.1720099,84412.0,84411.0,1.21696]
[1745159776871,0.1720099,84412.0,84411.0,1.34944]
[1745159776988,0.18755075,84412.0,84411.0,1.34944]
[1745159777741,0.18755075,84412.0,84411.0,1.21696]
[1745159777927,0.18755075,84412.0,84411.0,1.34944]
[1745159778125,0.18755075,84412.0,84411.0,1.21696]
[1745159778327,0.53372495,84412.0,84411.0,1.34944]
[1745159778670,0.53076296,84412.0,84411.0,1.34944]
[1745159778868,0.01454085,84407.0,84376.0,0.34]
[1745159779149,0.0496,84394.0,84379.0,0.34]
[1745159779293,0.42258475,84393.0,84379.0,0.34]
[1745159779494,0.41962211,84393.0,84379.0,0.34]
[1745159779689,0.41962211,84393.0,84381.0,0.34]
[1745159779889,0.41948692,84393.0,84382.0,0.13252]
[1745159780089,0.41948692,84393.0,84383.0,0.13252]
[1745159780403,0.41948692,84393.0,84385.0,0.34]
[1745159782708,0.41948692,84393.0,84383.0,4.498e-05]
[1745159783061,0.41948692,84393.0,84384.0,0.13252]
[1745159785240,0.41948692,84393.0,84384.0,0.13352]
[1745159785412,0.30003901,84411.0,84385.0,0.0485]
[1745159785618,0.11944791,84410.0,84400.0,0.30269187]
[1745159785828,0.11944791,84410.0,84401.0,0.13252]
[1745159786387,0.11944791,84410.0,84402.0,0.13252]
[1745159787073,0.00296172,84409.0,84402.0,0.13252]
[1745159787296,0.0458,84407.0,84384.0,0.00904266]
[1745159787520,0.0458,84407.0,84383.0,4.498e-05]
[1745159787521,0.12240994,84406.0,84385.0,0.13252]
[1745159787927,0.12240994,84406.0,84390.0,0.30269187]
[1745159790997,0.34623901,84405.0,84391.0,0.34]
[1745159791203,0.12240994,84404.0,84391.0,0.34]
[1745159793112,0.12240994,84404.0,84392.0,0.13248]
[1745159793848,0.12240994,84404.0,84390.0,0.30269187]
[1745159794183,0.12240994,84404.0,84391.0,0.13248]
[1745159794384,0.11944791,84404.0,84391.0,0.13248]
[1745159794930,0.11944791,84404.0,84391.0,0.16368]
[1745159796823,0.11944791,84404.0,84392.0,0.34]
[1745159803454,0.11944791,84404.0,84392.0,0.3883]
[1745159805910,0.11944791,84404.0,84394.0,0.34]
[1745159813294,0.0477,84403.0,84394.0,0.34]
[1745159813707,0.30003901,84413.0,84393.0,1.21704]
[1745159813708,0.0455,84401.0,84393.0,1.21704]
[1745159814045,0.0477,84399.0,84395.0,0.13248]
[1745159814245,0.11944791,84398.0,84395.0,0.13248]
[1745159818663,0.0477,84399.0,84396.0,0.34]
[1745159818862,0.0477,84409.0,84396.0,0.34]
[1745159819083,0.11944791,84408.0,84400.0,0.34]
[1745159823242,0.11944791,84408.0,84395.0,0.13248]
[1745159824983,0.0471,84425.0,84399.0,0.34]
[1745159825134,0.11944791,84424.0,84416.0,0.34]
[1745159825337,0.11944791,84424.0,84418.0,0.34]
[1745159825927,0.11944791,84424.0,84417.0,0.13248]
[1745159826542,0.11953853,84424.0,84417.0,0.13248]
[1745159827339,0.11953853,84424.0,84418.0,0.13248]
[1745159827545,9.062e-05,84424.0,84418.0,0.13248]
[1745159829250,0.11944791,84423.0,84418.0,0.13248]
[1745159829885,0.045,84420.0,84418.0,0.13248]
[1745159830086,0.11944791,84419.0,84418.0,0.13248]
[1745159833256,0.11944791,84419.0,84418.0,1.3494]
[1745159837774,0.16464791,84419.0,84418.0,1.6894]
[1745159837969,0.16564791,84419.0,84418.0,1.6894]
[1745159838174,0.16564791,84419.0,84418.0,1.3494]
[1745159840867,0.46568692,84419.0,84418.0,1.3494]
[1745159851044,0.46468692,84419.0,84418.0,1.3494]
[1745159851243,0.46568692,84419.0,84418.0,1.3494]
[1745159856770,0.46568692,84419.0,84418.0,1.34936]
[1745159862886,0.46468692,84419.0,84418.0,1.34936]
[1745159863065,0.46568692,84419.0,84418.0,1.34936]
[1745159876262,0.46568692,84419.0,84418.0,1.3496]
[1745159877048,0.46468692,84419.0,84418.0,1.3496]
[1745159894471,0.46468692,84419.0,84418.0,1.21712]
[1745159894687,0.46468692,84419.0,84418.0,1.34956]
[1745159902085,0.47922777,84419.0,84418.0,1.34956]
[1745159906144,0.48022777,84419.0,84418.0,1.34956]
[1745159906518,0.52902777,84419.0,84418.0,1.34956]
[1745159907157,0.5511671,84419.0,84418.0,1.34956]
[1745159907848,0.52902777,84419.0,84418.0,1.34956]
[1745159908298,0.01454085,84414.0,84408.0,0.01370088]
[1745159908520,0.00296225,84413.0,84409.0,1.3496]
[1745159908669,0.11944791,84410.0,84409.0,1.3496]
[1745159909722,0.16704791,84410.0,84409.0,1.3496]
[1745159914064,0.46708692,84410.0,84409.0,1.3496]
[1745159931517,0.55008967,84410.0,84409.0,1.21716]
[1745159931687,0.55108967,84410.0,84409.0,1.21716]
[1745159931888,0.55108967,84410.0,84409.0,1.3496]